Cogmind - Beta 16 @@@ ROGUE MODE // 2025.12.18 @ 04:00:41 Player: War__Prophet Result: Self-destructed Performance ------------- Evolutions (1) 500 Regions Visited (2) 400 Robots Destroyed (13) 65 Value Destroyed (281) 281 Prototype IDs (0) 0 Alien Tech Used (0) 0 Bonus (0) 0 TOTAL SCORE: 1246 Bonus ------- None Cogmind --------- Core Integrity 3/400 Matter 145/300 Energy 100/100 System Corruption 0% Temperature Cool (0) Movement Core (50) Location -9/Materials Parts ------- > --- POWER (1) -------- (None) > --- PROPULSION (4) --- (None) > --- UTILITY (2) ------ Light Armor Plating > --- WEAPON (2) ------- (None) > --- INVENTORY (5) ---- Ion Engine Light Armor Plating Light Armor Plating Peak State ------------ > --- POWER ------------ Ion Engine > --- PROPULSION ------- Wheel Wheel Flight Unit > --- UTILITY ---------- Small Storage Unit Light Armor Plating > --- WEAPON ----------- Light Assault Rifle Grenade Launcher > --- INVENTORY -------- Ion Engine Light Armor Plating Light Armor Plating Light Armor Plating [Rating: 8] Favorites ----------- Power Ion Engine Engine Ion Engine Propulsion Wheel Wheel Wheel Flight Unit Flight Unit Utility Small Storage Unit Storage Small Storage Unit Protection Light Armor Plating Weapon Light Assault Rifle Ballistic Gun Light Assault Rifle Launcher Grenade Launcher Build | -11 -10 -9 ------- Run | Yrd Mat Mat Slots Evolved 2 | . . 2 Power . | . . . Propulsion 2 | . . 2 Utility . | . . . Weapon . | . . . Parts Attached 9 | 5 2 2 Power 1 | 1 . . Engine 1 | 1 . . Core . | . . . Reactor . | . . . Propulsion 3 | 2 . 1 Treads . | . . . Leg . | . . . Wheel 2 | 2 . . Hover . | . . . Flight 1 | . . 1 Utility 3 | 1 1 1 Device . | . . . Storage 1 | 1 . . Processor . | . . . Hackware . | . . . Protection 2 | . 1 1 Artifact . | . . . Weapon 2 | 1 1 . Energy Gun . | . . . Energy Cannon . | . . . Ballistic Gun 1 | 1 . . Ballistic Cannon . | . . . Launcher 1 | . 1 . Special Weapon . | . . . Impact Weapon . | . . . Slashing Weapon . | . . . Piercing Weapon . | . . . Special Melee Weapon . | . . . Unidentified Prototypes . | . . . Parts Lost 5 | . . 5 Power 1 | . . 1 Propulsion 2 | . . 2 Utility 1 | . . 1 Weapon 1 | . . 1 Highest Loss Streak 5 | . . 5 To Critical Strikes . | . . . Average Backups 2 | . 1 4 Power . | . 1 1 Propulsion . | . . . Utility . | . . 2 Weapon . | . . . Tool/Special . | . . . Unused Backups 1 | . . 1 Power 1 | . . 1 Propulsion . | . . . Utility . | . . . Weapon . | . . . Tool/Special . | . . . Average Slot Usage (%) 65 | . 74 48 Engine 11 | . 14 7 Wheel 23 | . 28 15 Storage 11 | . 14 7 Protection 3 | . 1 7 Ballistic Gun 11 | . 14 7 Launcher 2 | . 2 2 Peak Build Rating 8 | 5 6 8 Average Rating 4 | 4 5 4 On Entrance 3 | . 5 6 Avg Prop Armor Cover (%) 8 | . . 8 Naked Turns 29 | . . 29 Heaviest Build 17 | 11 14 17 Greatest Support 20 | 20 20 20 Greatest Overweight (x) 4 | . . 4 Average Overweight (x) . | . . . Largest Inventory Capacity 8 | 8 8 8 Average Capacity 7 | 7 8 6 Most Carried 5 | 1 5 5 Average Carried 2 | . 1 4 Final Capacity 8 | 8 8 5 Final Carried 5 | 1 5 3 Class Distribution -------------------- 100% | Mutant Dominant Class ---------------- Mutant | -10/Materials Mutant | -9/Materials Resources | -11 -10 -9 ----------- Run | Yrd Mat Mat Matter Collected 205 | 187 . 18 Remotely . | . . . Salvage Created 173 | . 120 53 Parts 17 | . 7 10 Haulers Intercepted . | . . . Recyclers Shooed . | . . . Parts Field Recycled . | . . . Retrieved Matter . | . . . Parts Self-Destructed . | . . . Prevented . | . . . Parts Restored . | . . . Kills | -11 -10 -9 ------- Run | Yrd Mat Mat Combat Hostiles Destroyed 12 | . 5 7 Guns 2 | . 1 1 AOE 10 | . 4 6 Classes Destroyed 3 | . 2 1 Builder 1 | . 1 . Swarmer 7 | . . 7 Grunt 5 | . 5 . Best Kill Streak 7 | . 6 7 Combat Bots Only 7 | . 5 7 Max Kills in Single Turn 3 | . 1 3 Gunslinging . | . . . Exploded 3 | . 1 3 Melee . | . . . Uniques/NPCs Destroyed . | . . . Combat | -11 -10 -9 -------- Run | Yrd Mat Mat Hostile Shots Fired 83 | . 19 64 Missed 22 | . 5 17 Hits 61 | . 14 47 Projectile 61 | . 14 47 Critical Strikes 2 | . 1 1 Damage Taken 830 | . 197 633 Core 429 | . 32 397 Absorbed by Shields . | . . . Core Remaining (%) 93 | 100 87 . Volleys Fired 16 | . 8 8 Largest 2 | . 2 2 Hottest 50 | . 50 50 Shots Fired 27 | . 16 11 Gun 16 | . 8 8 Cannon . | . . . Launcher 11 | . 8 3 Special . | . . . Kinetic 16 | . 8 8 Thermal . | . . . Explosive 11 | . 8 3 Electromagnetic . | . . . Robot Hit Streak 10 | . 10 3 Robot Miss Streak 4 | . 1 4 Penetration Max . | . . . Secondary Targets . | . . . Shots Hit Robots 15 | . 12 3 Core Hits 20 | . 12 8 Critical Kills . | . . . Critical Parts Destroyed . | . . . Critical Strikes . | . . . Melee Attacks . | . . . Impact . | . . . Slashing . | . . . Piercing . | . . . Sneak Attacks . | . . . Combat Hostiles . | . . . Follow-up Attacks . | . . . Damage Inflicted 873 | . 535 338 Guns 64 | . 45 19 Cannons . | . . . Explosions 757 | . 490 267 Melee . | . . . Ramming 52 | . . 52 Kinetic 64 | . 45 19 Thermal . | . . . Explosive 757 | . 490 267 Electromagnetic . | . . . Impact . | . . . Slashing . | . . . Piercing . | . . . Highest Corruption . | . . . Average Corruption . | . . . Corruption Purged . | . . . Corruption Blocked . | . . . Overload Shots . | . . . Overflow Damage . | . . . Projectiles . | . . . Explosions . | . . . Melee . | . . . Knockbacks . | . . . Impact . | . . . Kinetic . | . . . Secondary . | . . . Self-Inflicted Damage 77 | . 15 62 Shots 3 | . 2 1 Rammed 14 | . . 14 Targets Rammed 14 | . . 14 Kicked . | . . . Crushed . | . . . Highest Temperature 54 | . 54 29 Average Temperature 29 | . 35 13 Received Heat Transfer 303 | . 117 186 Siege Activations . | . . . Martial Activations . | . . . Shielding Activations . | . . . Robots Disrupted . | . . . Combat Hostiles . | . . . Robots Corrupted . | . . . Combat Hostiles . | . . . Parts Fried . | . . . Impact Corruptions . | . . . Robots Melted . | . . . Combat Hostiles . | . . . Parts Melted . | . . . Heat Transferred . | . . . Parts Sabotaged . | . . . Parts Stolen . | . . . Parts Stripped . | . . . Power Chain Reactions . | . . . Alert | -11 -10 -9 ------- Run | Yrd Mat Mat Maximum Alert Level 1 | . . 1 Low Security (%) 94 | 100 100 79 Level 1 5 | . . 20 Level 2 . | . . . Level 3 . | . . . Level 4 . | . . . Level 5 . | . . . High Security . | . . . Max Security . | . . . Peak Influence 256 | . 175 256 Initial 65 | . . 65 Average 63 | . 38 152 Influence Increases 411 | . 200 211 Destroy 0b10 Robot/C 240 | . 100 140 Destroy 0b10 Robot/NC 5 | . 5 . Destroy Leader 50 | . 30 20 Disable Machine 15 | . . 15 Destroy Structure 56 | . 35 21 Partial Spotted 15 | . 15 . Lose Combat Pursuer 30 | . 15 15 Influence Decreases 225 | . 45 180 Entered New Map 90 | . . 90 Time Decay 85 | . 45 40 Lost Part 50 | . . 50 Squads Dispatched 1 | . 1 . Investigation 1 | . 1 . Extermination . | . . . Reinforcement . | . . . Assault . | . . . Garrison . | . . . Intercept . | . . . Searches Triggered . | . . . Construction Impeded . | . . . Haulers Reinforced . | . . . Active Scanning Responses . | . . . Cargo Convoy Interrupts . | . . . Stealth | -11 -10 -9 --------- Run | Yrd Mat Mat Distress Signals 3 | . 1 2 Communications Jammed . | . . . Distress Signals . | . . . Times Spotted 26 | . 8 18 Peak Tracking Total 10 | . 7 10 Tactical Retreats 2 | . 1 1 Traps | -11 -10 -9 ------- Run | Yrd Mat Mat Traps Triggered 1 | . 1 . Indirectly . | . . . Trap Hack Attempts . | . . . Triggered . | . . . Disarmed . | . . . Reprogrammed . | . . . Reused . | . . . Traps Extracted . | . . . Installed . | . . . Triggered . | . . . Machines | -11 -10 -9 ---------- Run | Yrd Mat Mat Machines Disabled 1 | . . 1 Max in Single Turn 1 | . . 1 Machines Repaired . | . . . Machines Dismantled . | . . . Machines Sabotaged . | . . . Overloaded Fab Kills . | . . . Hacking | -11 -10 -9 --------- Run | Yrd Mat Mat Machines Accessed 1 | . . 1 Terminals 1 | . . 1 Fabricators . | . . . Repair Stations . | . . . Recycling Units . | . . . Scanalyzers . | . . . Garrison Access . | . . . Total Hacks 2 | . . 2 Successful 1 | . . 1 Failed 1 | . . 1 Catastrophic 1 | . . 1 Database Lockouts . | . . . Manual 2 | . . 2 Terminals 2 | . . 2 Fabricators . | . . . Repair Stations . | . . . Recycling Units . | . . . Scanalyzers . | . . . Garrison Access . | . . . Terminal Hacks 1 | . . 1 Alert Level 1 | . . 1 Fabricator Hacks . | . . . Repair Station Hacks . | . . . Recycling Unit Hacks . | . . . Scanalyzer . | . . . Garrison Access Hacks . | . . . Unauthorized Hacks . | . . . Terminals . | . . . Fabricators . | . . . Repair Stations . | . . . Recycling Units . | . . . Scanalyzers . | . . . Garrison Access . | . . . Data Cores Recovered . | . . . Used . | . . . Hacking Detections 1 | . . 1 Full Trace Events . | . . . Feedback Events . | . . . Feedback Blocked . | . . . Robot Schematics Acquired . | . . . Robots Built . | . . . Authchips . | . . . Time . | . . . Total Robot Build Rating . | . . . Part Schematics Acquired . | . . . Parts Built . | . . . Authchips . | . . . Time . | . . . Total Part Build Rating . | . . . Part Studies Acquired . | . . . Parts Repaired . | . . . Time . | . . . Parts Recycled . | . . . Recycled Matter . | . . . Retrieved Matter . | . . . Retrieved Components . | . . . Parts Scanalyzed . | . . . Part Schematics Acquired . | . . . Parts Damaged . | . . . Bothacking | -11 -10 -9 ------------ Run | Yrd Mat Mat Used RIF Installer . | . . . Robots Hacked . | . . . Non-combat . | . . . Combat . | . . . Robot Hacks Applied . | . . . Relay Couplers Released . | . . . Fabnet Peak Effective % . | . . . Robots Rewired . | . . . Allies Hacked . | . . . Hacks Repelled . | . . . Allies | -11 -10 -9 -------- Run | Yrd Mat Mat Total Allies . | . . . Largest Group . | . . . Highest-Rated Group . | . . . Highest-Rated Ally . | . . . Total Orders . | . . . Ally Attacks . | . . . Total Damage . | . . . Kills . | . . . Allies Corrupted . | . . . Allies Melted . | . . . Intel | -11 -10 -9 ------- Run | Yrd Mat Mat Active Infowar (turns) . | . . . Robot Analysis Total . | . . . Derelict Logs Recovered . | . . . Drone Launches . | . . . Drone Recoveries . | . . . Exploration | -11 -10 -9 ------------- Run | Yrd Mat Mat Turns Passed 348 | 63 187 98 Spaces Moved 353 | 69 197 87 Core 50 | 1 . 49 Treads . | . . . Legs . | . . . Wheels 302 | 68 197 37 Hover . | . . . Flight 1 | . . 1 Fastest Speed 50 | 50 80 50 Average Speed 77 | 79 80 68 Slowest Speed 370 | 80 80 370 Overloaded Moves . | . . . Propulsion Burnouts . | . . . Robots Hopped . | . . . Potential Cave-ins . | . . . Cave-ins Triggered . | . . . Exploration Rate (%) 18 | 4 40 12 Regions Visited 2 Branch Regions . Pre-discovered Areas . | . . . Known Exits Taken . | . . . Unknown Exits Taken 2 | 1 1 . Scrap Searched . | . . . Spaces Dug . | . . . Terrain Destroyed 61 | . 36 25 Melee . | . . . Projectile . | . . . AOE 61 | . 36 25 Terrain Rammed . | . . . Walls Destroyed . | . . . Machines Disabled . | . . . Actions | -11 -10 -9 --------- Run | Yrd Mat Mat Total 397 | 74 211 112 Wait . | . . . Move 351 | 68 196 87 Hop . | . . . Pick Up 5 | 1 4 . Fast Attach 7 | 5 1 1 Attach 3 | . 1 2 Detach 1 | . 1 . Swap . | . . . Drop . | . . . Fire 16 | . 8 8 Melee . | . . . Ram 14 | . . 14 Kick . | . . . Crush . | . . . Escape Stasis . | . . . Rewire . | . . . Trap . | . . . Miscellaneous . | . . . Route ------- -11/Scrapyard -10/Materials (discovered 2 exits: *Mat / [*Min]) -9/Materials History --------- Turn | Location | Event 9 | -11/Scrapyard | Discovered new exit (range 16) 64 | -11/Scrapyard | Entered Materials 146 | -10/Materials | Discovered new exit (range 16) 195 | -10/Materials | Discovered new exit (range 16) 251 | -10/Materials | Entered another Materials area 251 | -9/Materials | Evolved 2 slots: Propulsion x2 311 | -9/Materials | Released all parts (3) 315 | -9/Materials | Destroyed 7 combat bots 315 | -9/Materials | Core integrity fell below 50% 321 | -9/Materials | Build established: Mutant 324 | -9/Materials | Core integrity fell below 20% 342 | -9/Materials | Lost 5 parts (1p2n1u1w) 349 | -9/Materials | Self-destructed Last Messages --------------- 00315_ K-01 Serf collects debris. 00315_ Slammed into Y-45 Defender. 00317_ U-05 Engineer lays Concrete. 00317_ Slammed into Y-45 Defender. 00318_ U-05 Engineer lays Concrete. 00318_ Slammed into Y-45 Defender. 00319_ K-01 Serf collects debris. 00319_ U-05 Engineer lays Concrete. 00319_ Slammed into Y-45 Defender. 00320_ Critical hit (Burn: +37). 00320_ U-05 Engineer lays Concrete. 00320_ Slammed into Y-45 Defender. 00322_ U-05 Engineer lays Concrete. 00322_ Slammed into Y-45 Defender. 00323_ U-05 Engineer lays Concrete. 00344_ Slammed into Y-45 Defender. 00347_ Connecting with Terminal... 00347_ Current location identified: Materials >>Alert(Check) Current Alert Level: Low Security Map ----- +----------------------------------------------------+ | ?????????????????????????????????????????????????? | | ?????????????????????????????????????????????????? | | ?????????????????????????????????????????????????? | | ?????????????????????????????????????????????????? | | ?????????????????????????????????????????????????? | | ?????????????????????????????????????????????????? | | ?????????????????????????????????????????????????? | | ?????????????????????????????????????????????????? | | ?????????????????????????????????????????????????? | | ?????????????????????????????????????????????????? | | ?????????????????????????????????????????????????? | | ?????????????????????????????????????????????????? | | ?????????????????????????????????????????????????? | | ?????????????????????????????????????????????????? | | ?????????????????????????????????????????????????? | | ?????????????????????????????????????????????????? | | ?????????????????????????????????????????????????? | | ???????????????????#############?????????????????? | | ???????????????????# #?????????????????? | | ???????????????????# #?????????????????? | | ???????????????????# #?????????????????? | | ???????????????????# #?????????????????? | | ???????????????????# #?????????????????? | | ???????????????????# #?????????????????? | | ???????????????????# #?????????????????? | | ???????????????##########@######?????????????????? | | ???????????????# # #????????????????????? | | ???????????????# # #????????????????????? | | ???????????????#""" + T #????????????????????? | | ???????????????#""" # Y #????????????????????? | | ???????????????#""" # g #????????????????????? | | ???????????????# ### ###????????????????????? | | ???????????????########?# #??????????????????????? | | ????????????????????????# #??????????????????????? | | ????????????????????????# #??????????????????????? | | ??????????????????????###Y###????????????????????? | | ??????????????????????# g #????????????????????? | | ??????????????????????# g #????????????????????? | | ??????????????????????# g +????????????????????? | | ??????????????????????# #????????????????????? | | ??????????????????????# ! #????????????????????? | | ??????????????????????### ###????????????????????? | | ????????????????????????# #??????????????????????? | | ????????????????????????# #???#####??????????????? | | ????????????????????????# #?? ##?????????????? | | ????????????????????????# #? #?????????????? | | ????????????????????????# # [! #??????????????? | | ????????????????????????# # [/ #??????????????? | | ????????????????????????# / [ [#??????????????? | | ????????????# ?????????# #########??????????????? | +----------------------------------------------------+ Best States ------------- Heat Dissipation 28 Energy Generation 10 Energy Capacity 250 Matter Stores 237 Matter Capacity 300 Sight Range 16 Terrain Scan Density 10 Armor Coverage 150 Evasion (%) 50 Item Schematics ----------------- None Robot Schematics ------------------ None Fabricated ------------ Nothing Repaired ---------- Nothing Studied --------- None Alien Tech Used ----------------- None Achievements -------------- None Challenges ------------ None Game ------ Seed ThrusterSignalInterrupter Manual? 0 Play Time 00:04:03 Cumulative 51.3 hours Start 2025.12.18 @ 03:57:51 End 2025.12.18 @ 04:00:41 Sessions 1 Manual Loads 0 Difficulty Rogue Special Mode None Game No. 194 Rogue 194 Adventurer 0 Explorer 0 Win Type - Total 0 Types 0/0/0/0/0/0/0/0/0/0 Lore% 12 Gallery% 37 Achievement% 25 Wizard Run 0 Options --------- Layout 1 ASCII 0 Keyboard 1 Movement Vi Keybinds 0 Fullscreen 1 Font 16/SmallcapsGlow Map View 55x38 Zoom Use 0% Tactical HUD 1 Map Filters NONE Filters NONE Steam X RUN: c973667a-1c42-459e-8e0f-f126f7993cc7